lending/lending_fUSD_20251022
["ID","MTS","AMOUNT","RATE_DAILY","PERIOD"]
[392021830,1761106239605,-298.98565042,0.00027218,2]
[392021862,1761106239897,-5538.33614392,0.00027218,2]
[392021864,1761106239907,-902.0,0.00027367,2]
[392021866,1761106239916,-4727.20999765,0.00028419,2]
[392021868,1761106239925,-13594.82,0.00028427,10]
[392021870,1761106239935,-9058.71665502,0.00028497,2]
[392021875,1761106239967,-586.1875232,0.00028497,2]
[392021878,1761106239990,-4462.44708,0.00028497,2]
[392021881,1761106240004,-10161.83519078,0.00028497,2]
[392021883,1761106240014,-199.0,0.00028506,7]
[392021885,1761106240023,-20347.75709155,0.00028507,10]
[392022141,1761106242510,-546.92227357,0.00027367,2]
[392022515,1761106245888,-510.42296506,0.00025509,2]
[392022517,1761106245898,-500.0,0.00025509,2]
[392022519,1761106245907,-500.0,0.00025509,2]
[392022521,1761106245917,-56.7277185,0.00025509,2]
[392022523,1761106245928,-443.2722815,0.00025509,2]
[392022525,1761106245938,-500.0,0.0002551,2]
[392022527,1761106245947,-500.0,0.0002551,2]
[392022529,1761106245956,-500.0,0.0002551,2]
[392022531,1761106245965,-317.83493923,0.0002551,2]
[392022533,1761106245975,-500.0,0.00027366,2]
[392022535,1761106245984,-172.26633777,0.00027366,2]
[392022537,1761106245994,-151.59936248,0.00027366,2]
[392022539,1761106246006,-150.85407465,0.00027366,2]
[392022541,1761106246016,-1134.39253898,0.00027367,2]
[392023554,1761106263328,610.75068884,0.0002806,120]
[392023555,1761106265896,284.79623426,0.0002806,120]
[392023556,1761106323511,2500.0,0.0002806,120]
[392023557,1761106323600,594.71918501,0.00026152,120]
[392023558,1761106324969,195.0,0.0002806,120]
[392023559,1761106326192,151.0,0.00034284,30]
[392023560,1761106326738,300.0,0.0002806,120]
[392023561,1761106326822,156.587,0.00034284,30]
[392023562,1761106327489,156.587,0.00034284,30]
[392023563,1761106347784,500.0,0.00034284,30]
[392023564,1761106348394,518.5,0.00034284,30]
[392023565,1761106349024,537.6845,0.00034284,30]
[392023566,1761106358823,1500.0,0.00028026,120]
[392023646,1761106625727,151.0,0.00034284,30]
[392023647,1761106625780,500.0,0.00034284,30]
[392023649,1761106626348,156.587,0.00034284,30]
[392023650,1761106626405,518.5,0.00034284,30]
[392023651,1761106626980,162.380719,0.00034284,30]
[392023652,1761106627088,518.5,0.00034284,30]
[392023653,1761106627594,168.3888056,0.00034284,30]
[392023654,1761106628230,174.61919141,0.00034284,30]
[392023655,1761106628837,181.08010149,0.00034284,30]
[392023656,1761106629443,187.78006525,0.00034284,30]
[392023657,1761106630048,187.78006525,0.00034284,30]
[392023710,1761106881307,343.94,0.00012212,2]
[392023711,1761106881511,343.94,0.00012855,2]
[392023712,1761106881745,343.94,0.00013497,2]
[392023713,1761106894167,-220.19465294,0.0001414,2]
[392023714,1761106896688,-123.74534706,0.0001414,2]
[392023715,1761106896710,-140.44196509,0.00014783,2]
[392023738,1761107089548,-177.7291089,0.00014783,2]
[392023739,1761107095379,-25.76892601,0.00014783,2]
[392023740,1761107095402,-270.02107399,0.00015425,2]
[392023747,1761107160230,160.0,0.000301,120]
[392023784,1761107284035,-295.79517428,0.00015,2]
[392023918,1761107431610,-1200.0,0.00014899,2]
[392023919,1761107431620,-2050.0,0.000149,2]
[392023920,1761107431631,-5022.81277933,0.000149,2]
[392023921,1761107431667,-466.0,0.000149,2]
[392023922,1761107431726,-692.4746647,0.000149,2]
[392023923,1761107431736,-351.82884728,0.00014973,2]
[392023924,1761107431745,-501.06202151,0.00014973,2]
[392023925,1761107431755,-500.0,0.00014973,2]
[392023926,1761107431765,-300.0,0.00014998,2]
[392023927,1761107431774,-300.0,0.00014998,2]
[392023928,1761107431784,-1000.0,0.00014999,2]
[392023929,1761107431793,-500.0,0.00014999,2]
[392023930,1761107431802,-192.3235968,0.00014999,2]
[392023931,1761107431811,-229.25248256,0.00014999,2]
[392023932,1761107431821,-371.34107412,0.00014999,2]
[392023933,1761107431830,-500.0,0.00014999,2]
[392023934,1761107431840,-491.53219937,0.00014999,2]
[392023935,1761107431849,-150.0,0.00014999,2]
[392023936,1761107431859,-500.0,0.00014999,2]
[392023937,1761107431869,-250662.89522599,0.00015,2]
[392023938,1761107431885,-33353.94702204,0.00015,2]
[392023940,1761107431897,-1002.55453634,0.00015,2]
[392023941,1761107431908,-2143.71132824,0.00015,2]
[392023943,1761107431919,-949.15632863,0.00015,2]
[392023945,1761107431930,-373.2980954,0.00015,2]
[392023946,1761107431949,-4201.65523545,0.00015,2]
[392023960,1761107437558,-806.68,0.00015,2]
[392023961,1761107437569,-504.78443436,0.00015,2]
[392023962,1761107437614,-296.2499,0.00015,2]
[392023963,1761107437673,-255.04309345,0.00015,2]
[392023964,1761107437731,-569.0859,0.00015,2]
[392023965,1761107437789,-267.20910614,0.00015,2]
[392024159,1761107439588,-54238.28657743,0.00015,2]
[392024185,1761107439752,-578.51776381,0.00015,2]
[392024197,1761107439865,-792.73234019,0.00015,2]
[392024199,1761107439877,-971.82646147,0.00015,2]
[392024202,1761107439887,-6382.48222029,0.00015,2]
[392024204,1761107439898,-549.24593937,0.00015,2]
[392024205,1761107439910,-543.65,0.00015,2]
[392024502,1761107442641,-326.00277659,0.00015,2]
[392024504,1761107442652,-3603.22449788,0.00015,2]
[392024506,1761107442813,-683674.63774979,0.00015,2]
[392024507,1761107442823,-1814.80310725,0.00015,2]
[392024508,1761107442832,-152.72568361,0.000153,2]
[392024510,1761107442843,-160.0,0.000154,2]
[392024511,1761107442852,-73.91892601,0.00015425,2]
[392024512,1761107442862,-343.94,0.00016068,2]
[392024513,1761107442871,-255.0,0.00016124,2]
[392024514,1761107442880,-1680.0,0.00016389,2]
[392024515,1761107442890,-420.0,0.00016415,2]
[392024516,1761107442900,-163.73183504,0.00016438,2]
[392024517,1761107442909,-295.79,0.00016498,2]
[392024518,1761107442918,-201.51742942,0.000165,2]
[392024519,1761107442928,-343.94,0.00016711,2]
[392024520,1761107442937,-8231.28744394,0.00016886,2]
[392024521,1761107442947,-250.0,0.00017,2]
[392024522,1761107442956,-433.0,0.00017339,2]
[392024523,1761107442966,-343.94,0.00017354,2]
[392024524,1761107442975,-587.0,0.00017965,2]
[392024525,1761107442984,-343.94,0.00017996,2]
[392024526,1761107442993,-2351.0,0.00018028,2]
[392024527,1761107443003,-152.72568357,0.00018213,2]
[392024528,1761107443012,-624.0,0.00018629,2]
[392024529,1761107443022,-343.94,0.00018639,2]
[392024530,1761107443031,-8231.28744394,0.00018872,2]
[392024531,1761107443041,-300.0,0.00019,2]
[392024532,1761107443050,-343.94,0.00019282,2]
[392024533,1761107443060,-190.1,0.00019577,2]
[392024534,1761107443069,-823.0,0.00019662,2]
[392024535,1761107443079,-3292.0,0.00019831,2]
[392024536,1761107443088,-343.94,0.00019925,2]
[392024537,1761107443097,-343.94,0.00020567,2]
[392024538,1761107443107,-352.35,0.00020664,2]
[392024539,1761107443116,-1804.38846027,0.000207,2]
[392024540,1761107443126,-25684.83306281,0.0002085,2]
[392024541,1761107443136,-8231.28744394,0.00020859,2]
[392024542,1761107443146,-350.0,0.00021,2]
[392024543,1761107443155,-152.72568357,0.00021125,2]
[392024544,1761107443164,-343.94,0.0002121,2]
[392024545,1761107443174,-1152.0,0.00021518,2]
[392024547,1761107443183,-2000.0,0.000216,2]
[392024548,1761107443193,-344.91597966,0.000218,2]
[392024549,1761107443202,-4609.0,0.00021814,2]
[392024550,1761107443211,-343.94,0.00021853,2]
[392024551,1761107443220,-4098.4040875,0.00022,2]
[392024552,1761107443230,-160.97,0.00022,2]
[392024553,1761107443239,-488.63162552,0.000221,2]
[392024554,1761107443248,-237.4257724,0.0002211,2]
[392024555,1761107443258,-343.94,0.00022496,2]
[392024556,1761107443479,-35070.17582201,0.000225,2]
[392024557,1761107443489,-516.7132753,0.0002271,2]
[392024558,1761107443499,-8231.28744394,0.00022845,2]
[392024559,1761107443508,-152.04,0.0002289,2]
[392024560,1761107443517,-224.84101181,0.0002289,2]
[392024561,1761107443526,-19158.90966232,0.000229,2]
[392024562,1761107443535,-400.0,0.00023,2]
[392024563,1761107443544,-434.55717774,0.00023,2]
[392024564,1761107443553,-995.47415271,0.00023,2]
[392024565,1761107443562,-2554.77558449,0.000231,2]
[392024566,1761107443571,-343.94,0.00023138,2]
[392024567,1761107443581,-6295.01,0.00023148,2]
[392024568,1761107443590,-51548.22126988,0.000232,2]
[392024569,1761107443599,-200.0,0.000235,2]
[392024570,1761107443609,-1613.0,0.00023551,2]
[392024571,1761107443618,-666.0,0.00023581,3]
[392024572,1761107443627,-10996.54,0.00023676,2]
[392024573,1761107443636,-214.73752057,0.0002377,2]
[392024574,1761107443645,-343.94,0.00023781,2]
[392024575,1761107443655,-6453.0,0.00023995,2]
[392024576,1761107443664,-1880.0,0.00024,5]
[392024577,1761107443673,-1007.98078909,0.00024,2]
[392024578,1761107443682,-771.23542052,0.00024,2]
[392024579,1761107443691,-3600.0,0.00024,2]
[392024580,1761107443700,-16008.22699113,0.00024,2]
[392024581,1761107443710,-152.72568357,0.00024038,2]
[392024582,1761107443719,-162.01055292,0.00024186,2]
[392024583,1761107443729,-416.52298355,0.0002421,2]
[392024584,1761107443738,-3649.82467484,0.0002421,2]
[392024585,1761107443747,-343.94,0.00024424,2]
[392024586,1761107443757,-589.89061146,0.0002465,2]
[392024587,1761107443769,-1000.0,0.00024653,2]
[392024588,1761107443778,-245.97,0.00024658,2]
[392024589,1761107443787,-1000.0,0.00024658,2]
[392024590,1761107443796,-1020.39,0.00024785,2]
[392024591,1761107443805,-327420.667165,0.000248,2]
[392024592,1761107443814,-8231.28744394,0.00024831,2]
[392024593,1761107443823,-500.0,0.00024873,2]
[392024594,1761107443832,-500.0,0.00024873,2]
[392024595,1761107443841,-500.0,0.00024873,2]
[392024596,1761107443850,-500.0,0.00024873,2]
[392024597,1761107443859,-500.0,0.00024873,2]
[392024598,1761107443868,-501.12023155,0.00024873,2]
[392024599,1761107443877,-165.00302092,0.00024873,2]
[392024600,1761107443887,-501.28903143,0.00024873,2]
[392024601,1761107443896,-500.0,0.00024873,2]
[392024602,1761107443905,-500.0,0.00024873,2]
[392024603,1761107443914,-501.61165197,0.00024873,2]
[392024604,1761107443923,-289.0,0.00024893,2]
[392024605,1761107443933,-282815.206272,0.000249,2]
[392024606,1761107443942,-12855.2366487,0.0002499,2]
[392024607,1761107443952,-599.96509982,0.00025,2]
[392024608,1761107443962,-204.51177698,0.00025,2]
[392024609,1761107443971,-1018.05,0.00025,2]
[392024610,1761107443981,-468.32464053,0.00025,2]
[392024611,1761107444011,-1290.59520199,0.00025,2]
[392024612,1761107444020,-1255.40479801,0.00025,2]
[392024615,1761107445875,-500.0,0.00014999,2]
[392024616,1761107445885,-385.91123784,0.00014999,2]
[392024617,1761107445894,-500.0,0.00014999,2]
[392024618,1761107445904,-1861.33809415,0.00025,2]
[392024619,1761107446043,-6420.07213873,0.00025,2]
[392024620,1761107446054,-2760.9107,0.00025,2]
[392024621,1761107446065,-1.7589596,0.00025,2]
[392024622,1761107446074,-360.0,0.00025,2]
[392024623,1761107446083,-97.2410404,0.00025,2]
[392024624,1761107446192,-3673.97616819,0.00025,2]
[392024625,1761107446202,-3520.45526998,0.00025,2]
[392024626,1761107446213,-2999.2085078,0.00025,2]
[392024627,1761107446222,-3186.48378289,0.00025,2]
[392024628,1761107446232,-25150.51907015,0.00025,2]
[392024629,1761107446242,-1048.67468701,0.00025,2]
[392024630,1761107446251,-164.82744634,0.00025,2]
[392024631,1761107446260,-2790.29695793,0.00025,2]
[392024632,1761107446270,-12855.2366487,0.00025,2]
[392024633,1761107446280,-5000.0,0.00025001,2]
[392024634,1761107446289,-1981.44,0.00025004,2]
[392024635,1761107446299,-5000.0,0.00025004,2]
[392024636,1761107446308,-15000.0,0.0002501,2]
[392024637,1761107446317,-179.2258836,0.00025073,2]
[392024638,1761107446326,-5000.0,0.0002508,2]
[392024639,1761107446335,-5000.0,0.00025089,2]
[392024640,1761107446344,-1857.94,0.00025143,2]
[392024641,1761107446353,-12855.2366487,0.00025163,2]
[392024642,1761107446363,-5000.0,0.00025168,2]
[392024643,1761107446373,-5000.0,0.00025173,2]
[392024644,1761107446382,-350.0,0.00025178,2]
[392024645,1761107446392,-5622.62139037,0.00025264,2]
[392024646,1761107446401,-2529.04,0.0002527,2]
[392024647,1761107446410,-1500.0,0.000253,2]
[392024648,1761107446419,-12855.2366487,0.0002531,2]
[392024649,1761107446429,-12855.2366487,0.00025316,2]
[392024650,1761107446438,-16118.19,0.0002532,2]
[392024651,1761107446448,-25000.0,0.00025326,2]
[392024652,1761107446457,-150.0,0.00025326,2]
[392024653,1761107446466,-150.0,0.00025326,2]
[392024654,1761107446475,-500.0,0.00025326,2]
[392024655,1761107446484,-426.34,0.00025364,2]
[392024656,1761107446494,-2485.05,0.00025372,2]
[392024657,1761107446504,-5000.0,0.00025376,2]
[392024658,1761107446513,-150.0,0.00025376,2]
[392024659,1761107446523,-500.0,0.00025376,2]
[392024660,1761107446532,-500.0,0.00025376,2]
[392024661,1761107446541,-150.45108351,0.00025376,2]
[392024662,1761107446551,-500.0,0.00025376,2]
[392024663,1761107446560,-500.0,0.00025376,2]
[392024664,1761107446569,-150.0,0.00025376,2]
[392024665,1761107446578,-500.0,0.00025376,2]
[392024666,1761107446587,-500.0,0.00025376,2]
[392024667,1761107446596,-500.0,0.00025376,2]
[392024668,1761107446606,-500.0,0.00025376,2]
[392024669,1761107446615,-500.0,0.00025376,2]
[392024670,1761107446624,-150.0,0.00025376,2]
[392024671,1761107446634,-500.0,0.00025376,2]
[392024672,1761107446644,-150.0,0.00025376,2]
[392024673,1761107446653,-150.0,0.00025376,2]
[392024674,1761107446663,-500.0,0.00025376,2]
[392024675,1761107446671,-500.0,0.00025376,2]
[392024676,1761107446680,-150.0,0.00025376,2]
[392024677,1761107446689,-157.40184898,0.00025376,2]
[392024678,1761107446699,-153.93268946,0.00025376,2]
[392024679,1761107446707,-150.0,0.00025376,2]
[392024680,1761107446717,-500.0,0.00025376,2]
[392024681,1761107446726,-150.0,0.00025381,2]
[392024682,1761107446735,-150.0,0.00025381,2]
[392024683,1761107446744,-500.0,0.00025381,2]
[392024684,1761107446753,-1000.0,0.00025421,2]
[392024685,1761107446767,-1000.0,0.00025421,2]
[392024686,1761107446775,-1000.0,0.00025421,2]
[392024687,1761107446785,-1002.15660864,0.00025421,2]
[392024688,1761107446794,-358.50418649,0.00025421,2]
[392024689,1761107446804,-1000.0,0.00025421,2]
[392024690,1761107446814,-1000.0,0.00025421,2]
[392024691,1761107446823,-5000.0,0.00025425,2]
[392024692,1761107446834,-290.51761115,0.00025431,2]
[392024693,1761107446845,-500.0,0.00025431,2]
[392024694,1761107446854,-500.0,0.00025431,2]
[392024695,1761107446863,-500.0,0.00025431,2]
[392024696,1761107446872,-500.0,0.00025431,2]
[392024697,1761107446882,-151.37309149,0.00025431,2]
[392024698,1761107446891,-500.0,0.00025431,2]
[392024699,1761107446900,-502.55281322,0.00025431,2]
[392024700,1761107446910,-500.0,0.00025431,2]
[392024701,1761107446919,-500.0,0.00025431,2]
[392024702,1761107446928,-500.0,0.00025431,2]
[392024703,1761107446938,-150.68205929,0.00025431,2]
[392024704,1761107446947,-503.53212675,0.00025431,2]
[392024705,1761107446956,-150.0,0.00025431,2]
[392024706,1761107446965,-500.0,0.00025431,2]
[392024707,1761107446974,-150.0,0.00025431,2]
[392024708,1761107446984,-500.0,0.00025431,2]
[392024709,1761107446994,-201.25700237,0.00025436,2]
[392024710,1761107447004,-200.0,0.00025436,2]
[392024711,1761107447014,-500.0,0.00025436,2]
[392024712,1761107447024,-327.63,0.00025449,2]
[392024713,1761107447034,-5000.0,0.00025476,2]
[392024714,1761107447044,-417.96960404,0.00025486,2]
[392024715,1761107447053,-500.0,0.00025486,2]
[392024716,1761107447063,-500.0,0.00025486,2]
[392024717,1761107447072,-500.0,0.00025486,2]
[392024718,1761107447081,-500.0,0.00025486,2]
[392024719,1761107447090,-502.09349416,0.00025486,2]
[392024720,1761107447100,-504.0748538,0.00025486,2]
[392024721,1761107447109,-500.0,0.00025486,2]
[392024722,1761107447118,-200.0,0.00025486,2]
[392024723,1761107447128,-500.0,0.00025486,2]
[392024724,1761107447138,-291.0,0.00025486,2]
[392024725,1761107447147,-500.0,0.00025486,2]
[392024726,1761107447157,-500.0,0.0002549,2]
[392024727,1761107447167,-1018.05,0.000255,2]
[392024728,1761107447176,-2769.23,0.00025532,2]
[392024729,1761107447186,-500.0,0.0002554,2]
[392024730,1761107447194,-500.0,0.0002554,2]
[392024731,1761107447204,-500.0,0.0002554,2]
[392024732,1761107447213,-500.0,0.0002554,2]
[392024733,1761107447223,-500.0,0.0002554,2]
[392024734,1761107447232,-533.92368077,0.0002554,2]
[392024735,1761107447241,-500.0,0.0002554,2]
[392024736,1761107447251,-500.0,0.00025545,2]
[392024737,1761107447260,-500.0,0.00025595,2]
[392024738,1761107447269,-500.0,0.00025595,2]
[392024739,1761107447278,-565.13793985,0.00025595,2]
[392024740,1761107447288,-500.0,0.00025595,2]
[392024741,1761107447297,-160.24679278,0.00025595,2]
[392024742,1761107447307,-500.0,0.00025595,2]
[392024743,1761107447316,-500.0,0.000256,2]
[392024744,1761107447325,-12855.2366487,0.00025603,2]
[392024745,1761107447335,-2297.31,0.00025613,2]
[392024746,1761107447344,-5000.0,0.00025624,2]
[392024747,1761107447354,-2187.1,0.00025633,2]
[392024748,1761107447363,-500.0,0.0002565,2]
[392024749,1761107447373,-500.0,0.0002565,2]
[392024750,1761107447383,-500.0,0.0002565,2]
[392024751,1761107447392,-500.0,0.0002565,2]
[392024752,1761107447402,-2805.21,0.00025655,2]
[392024753,1761107447411,-677.11,0.00025675,2]
[392024754,1761107447421,-225.2462219,0.00025705,2]
[392024755,1761107447430,-500.0,0.00025705,2]
[392024756,1761107447439,-504.47967922,0.00025705,2]
[392024757,1761107447448,-500.0,0.00025705,2]
[392024758,1761107447457,-12855.2366487,0.00025708,2]
[392024759,1761107447467,-25000.0,0.00025718,2]
[392024760,1761107447476,-500.0,0.0002576,2]
[392024761,1761107447485,-2258.0,0.00025775,2]
[392024762,1761107447495,-1211.96,0.0002578,2]
[392024763,1761107447504,-5000.0,0.00025795,2]
[392024764,1761107447513,-154.77978143,0.00025798,7]
[392024765,1761107447522,-5000.0,0.00025812,2]
[392024766,1761107447531,-500.0,0.00025814,2]
[392024767,1761107447541,-12855.2366487,0.0002582,2]
[392024768,1761107447550,-5000.0,0.0002583,2]
[392024769,1761107447559,-5000.0,0.00025836,2]
[392024770,1761107447568,-500.0,0.0002584,2]
[392024771,1761107447577,-25000.0,0.00025841,2]
[392024772,1761107447587,-5000.0,0.0002585,2]
[392024773,1761107447596,-500.0,0.00025869,2]
[392024774,1761107447605,-2562.36639199,0.00025879,2]
[392024775,1761107447614,-1005.87,0.00025883,2]
[392024776,1761107447623,-150.0,0.00025883,2]
[392024777,1761107447632,-150.0,0.00025883,2]
[392024778,1761107447641,-150.0,0.00025883,2]
[392024779,1761107447651,-500.0,0.00025924,2]
[392024780,1761107447660,-308.53,0.00025928,2]
[392024781,1761107447669,-150.59189771,0.00025938,2]
[392024782,1761107447679,-150.0,0.00025938,2]
[392024783,1761107447688,-150.0,0.00025938,2]
[392024784,1761107447698,-5000.0,0.00025949,2]
[392024785,1761107447707,-260.32,0.00025949,2]
[392024786,1761107447716,-150.0,0.00025949,2]
[392024787,1761107447726,-500.0,0.00025949,2]
[392024788,1761107447735,-500.0,0.00025949,2]
[392024789,1761107447744,-500.0,0.00025949,2]
[392024790,1761107447754,-150.0,0.00025949,2]
[392024791,1761107447767,-500.0,0.00025949,2]
[392024792,1761107447776,-271.07694409,0.00025968,2]
[392024793,1761107447786,-1500.0,0.00025968,2]
[392024794,1761107447796,-1500.0,0.00025968,2]
[392024795,1761107447805,-1002.04286902,0.00025968,2]
[392024796,1761107447983,-1500.0,0.00025968,2]
[392024797,1761107447994,-500.0,0.00025979,2]
[392024798,1761107448031,-591.74741742,0.0002599,2]
[392024799,1761107448040,-150.0,0.00025993,2]
[392024800,1761107448049,-202.39736581,0.00025993,2]
[392024801,1761107448058,-5000.0,0.00025998,2]
[392024802,1761107448068,-4456.70028773,0.00026,2]
[392024803,1761107448077,-2660.2352419,0.00026,2]
[392024804,1761107448086,-4433.65,0.00026,2]
[392024805,1761107448096,-1002.27750817,0.00026,7]
[392024806,1761107448105,-213.2514545,0.00026,2]
[392024807,1761107448115,-151.0,0.00026,7]
[392024808,1761107448124,-160.48791256,0.00026,2]
[392024809,1761107448133,-1018.05,0.00026,30]
[392024810,1761107448142,-151.99993636,0.00026004,2]
[392024811,1761107448151,-500.0,0.00026004,2]
[392024812,1761107448160,-503.50894851,0.00026004,2]
[392024813,1761107448170,-500.0,0.00026004,2]
[392024814,1761107448179,-150.0,0.00026004,2]
[392024815,1761107448188,-503.17153212,0.00026004,2]
[392024816,1761107448197,-500.0,0.00026034,2]
[392024817,1761107448206,-200.73457507,0.00026047,2]
[392024818,1761107448215,-500.0,0.00026059,2]
[392024819,1761107448224,-150.0,0.00026059,2]
[392024820,1761107448234,-440.37805235,0.00026088,2]
[392024821,1761107448243,-3273.09631251,0.00026099,2]
[392024998,1761108551053,312.78,0.00013699,2]
[392025002,1761108560228,200.0,0.00011313,2]
[392025012,1761108631789,-179.22588361,0.0001483,2]
[392025014,1761108631799,-250.0,0.00014872,2]
[392025015,1761108631809,-352.48047887,0.00014935,2]
[392025016,1761108631818,-346.7217776,0.00014999,2]
[392025017,1761108631827,-102.77327563,0.00015,2]
[392025018,1761108631860,-373.35923693,0.00015,2]
[392025019,1761108631870,-250.0,0.00016313,2]
[392025020,1761108631879,-125.79803074,0.00016387,2]
[392025021,1761108631891,-1074.20196926,0.00016387,2]
[392025022,1761108631900,-300.0,0.00016388,2]
[392025023,1761108631910,-300.0,0.00016388,2]
[392025024,1761108631919,-1680.0,0.00017999,2]
[392025025,1761108631928,-1209.0,0.00019769,2]
[392025026,1761108631937,-312.78,0.00020187,2]
[392025027,1761108631947,-258.39,0.00021399,2]
[392025028,1761108631956,-1769.0,0.000231,3]
[392025029,1761108631966,-5513.0,0.000238,5]
[392025030,1761108631975,-165.25,0.00024457,2]
[392025031,1761108631984,-162.01055293,0.00024524,2]
[392025032,1761108631994,-166.66,0.00024554,30]
[392025033,1761108632003,-1729.08,0.00024611,2]
[392025034,1761108632013,-166.66,0.00025071,30]
[392025035,1761108632023,-178.36,0.0002515,2]
[392025036,1761108632032,-1500.0,0.000252,2]
[392025037,1761108632042,-150.0,0.00025288,2]
[392025038,1761108632052,-3420.12,0.00025438,2]
[392025039,1761108632062,-250.0,0.00025517,7]
[392025040,1761108632071,-166.66,0.00025588,30]
[392025041,1761108632081,-4736.28166796,0.0002584,2]
[392025044,1761108632105,-772.1741726,0.0002584,2]
[392025060,1761108632245,-27728.0,0.0002584,2]
[392025076,1761108632322,-12540.82812517,0.0002584,2]
[392025078,1761108632331,-298.11,0.00025844,2]
[392025080,1761108632340,-150.0,0.00025844,2]
[392025082,1761108632350,-1000.0,0.00025969,2]
[392025085,1761108632361,-14308.73621,0.0002597,2]
[392025088,1761108632370,-3796.8733511,0.0002597,2]
[392025090,1761108632380,-683.85,0.00025971,2]
[392025092,1761108632390,-316.21101475,0.00025974,2]
[392025094,1761108632399,-159.62,0.00025974,2]
[392025096,1761108632408,-654.0,0.00026,9]
[392025097,1761108632418,-183.0,0.00026027,7]
[392025098,1761108632427,-200.0,0.00026099,2]
[392025100,1761108632437,-172.71423313,0.00026099,2]
[392025103,1761108632446,-151.0,0.00026099,2]
[392025104,1761108632456,-2114.30547,0.00026099,2]
[392025105,1761108632465,-166.66,0.00026105,30]
[392025106,1761108632474,-179.2258836,0.00026298,2]
[392025107,1761108632484,-200.0,0.0002636,2]
[392025108,1761108632494,-500.0,0.00026397,2]
[392025109,1761108632504,-214.05554184,0.00026397,2]
[392025110,1761108632514,-27075.68436798,0.000264,2]
[392025111,1761108632523,-5580.49876424,0.00026432,2]
[392025112,1761108632532,-167.94,0.00026438,2]
[392025113,1761108632541,-150.0,0.00026528,2]
[392025114,1761108632551,-500.0,0.00026528,2]
[392025115,1761108632561,-500.0,0.00026528,2]
[392025116,1761108632570,-500.0,0.00026528,2]
[392025117,1761108632579,-150.0,0.00026528,2]
[392025118,1761108632589,-208.25,0.0002653,2]
[392025119,1761108632598,-14463.80262484,0.0002653,2]
[392025120,1761108632610,-978.3010096,0.0002653,2]
[392025121,1761108632621,-2287.79649525,0.0002653,2]
[392025122,1761108632634,-4348.4,0.0002653,2]
[392025124,1761108637714,-889.96,0.0002653,2]
[392025125,1761108637822,-419.075,0.0002653,2]
[392025126,1761108637834,-435.68171857,0.0002653,2]
[392025127,1761108637933,-9287.95501882,0.0002653,2]
[392025130,1761108637944,-199.96141613,0.00026531,2]
[392025131,1761108637953,-170.69279879,0.00026531,2]
[392025133,1761108637963,-165.76017852,0.00026531,2]
[392025135,1761108637973,-229.20230104,0.00026531,2]
[392025137,1761108637982,-500.0,0.00026531,2]
[392025139,1761108637993,-400.95900719,0.00026531,2]
[392025141,1761108638003,-281.54297008,0.00026531,2]
[392025143,1761108638012,-150.0,0.00026531,2]
[392025145,1761108638022,-150.0,0.00026531,2]
[392025147,1761108638031,-500.0,0.00026531,2]
[392025149,1761108638040,-1000.0,0.00026532,2]
[392025151,1761108638049,-1000.0,0.00026532,2]
[392025153,1761108638058,-1000.0,0.00026532,2]
[392025155,1761108638067,-1000.0,0.00026532,2]
[392025157,1761108638076,-230.33308928,0.00026532,2]
[392025338,1761108639820,-769.66691072,0.00026532,2]